Cogmind - Beta 15 @@@ ROGUE MODE // 2025.07.01 @ 00:51:12 Player: pyroperro Result: Destroyed by D-53 Grenadier with Mini Grenade Launcher Performance ------------- Evolutions (0) 0 Regions Visited (2) 400 Robots Destroyed (21) 105 Value Destroyed (389) 389 Prototype IDs (0) 0 Alien Tech Used (0) 0 Bonus (0) 0 TOTAL SCORE: 894 Bonus ------- None Cogmind --------- Core Integrity 0/250 Matter 206/300 Energy 100/100 System Corruption 2% Temperature Cool (0) Movement Core (100) Ox1 Location -10/Mines Parts ------- > --- POWER (1) -------- (None) > --- PROPULSION (2) --- (None) > --- UTILITY (2) ------ Small Storage Unit Terrain Scanner > --- WEAPON (2) ------- (None) > --- INVENTORY (8) ---- Ion Engine Seismic Detector Hacking Suite Light Assault Rifle Mining Laser Hammer Peak State ------------ > --- POWER ------------ Ion Engine > --- PROPULSION ------- Light Treads Light Treads > --- UTILITY ---------- Small Storage Unit Light Armor Plating > --- WEAPON ----------- Light Assault Rifle Light Assault Rifle > --- INVENTORY -------- Ion Engine Compact Wheel Seismic Detector Hacking Suite Small Laser Light Assault Rifle Grenade Launcher Hammer [Rating: 8] Favorites ----------- Power Ion Engine Engine Ion Engine Propulsion Light Treads Treads Light Treads Wheel Compact Wheel Utility Small Storage Unit Device Seismic Detector Storage Small Storage Unit Protection Light Armor Plating Weapon Light Assault Rifle Ballistic Gun Light Assault Rifle Launcher Grenade Launcher Impact Weapon Hammer Build | -11 -10 -10 ------- Run | Yrd Mat Min Slots Evolved . | . . . Power . | . . . Propulsion . | . . . Utility . | . . . Weapon . | . . . Parts Attached 15 | 6 6 3 Power 2 | 1 1 . Engine 2 | 1 1 . Core . | . . . Reactor . | . . . Propulsion 3 | 2 . 1 Treads 2 | 2 . . Leg . | . . . Wheel 1 | . . 1 Hover . | . . . Flight . | . . . Utility 5 | 2 2 1 Device 2 | 1 . 1 Storage 1 | 1 . . Processor . | . . . Hackware . | . . . Protection 2 | . 2 . Artifact . | . . . Weapon 5 | 1 3 1 Energy Gun . | . . . Energy Cannon . | . . . Ballistic Gun 3 | 1 2 . Ballistic Cannon . | . . . Launcher 1 | . . 1 Special Weapon . | . . . Impact Weapon 1 | . 1 . Slashing Weapon . | . . . Piercing Weapon . | . . . Special Melee Weapon . | . . . Unidentified Prototypes . | . . . Parts Lost 10 | . 2 8 Power 2 | . 1 1 Propulsion 3 | . . 3 Utility 2 | . 1 1 Weapon 3 | . . 3 Highest Loss Streak 8 | . 1 8 To Critical Strikes . | . . . Average Backups 6 | 3 6 7 Power . | . . 1 Propulsion . | . 1 . Utility 1 | . 1 2 Weapon 3 | 1 3 3 Tool/Special . | . . . Unused Backups 3 | . 1 2 Power 1 | . . 1 Propulsion . | . . . Utility 1 | . . 1 Weapon 1 | . 1 . Tool/Special . | . . . Average Slot Usage (%) 95 | . 96 91 Engine 13 | . 14 11 Treads 27 | . 27 25 Device 2 | . 2 1 Storage 14 | . 14 14 Protection 10 | . 9 11 Ballistic Gun 25 | . 26 22 Peak Build Rating 8 | 6 8 8 Average Rating 7 | 4 7 7 On Entrance 4 | . 6 8 Naked Turns . | . . . Heaviest Build 17 | 12 15 17 Greatest Support 40 | 40 40 40 Greatest Overweight (x) . | . . . Average Overweight (x) . | . . . Largest Inventory Capacity 8 | 8 8 8 Average Capacity 7 | 7 8 8 Most Carried 8 | 4 8 8 Average Carried 6 | 3 6 7 Final Capacity 8 | 8 8 8 Final Carried 8 | 4 8 6 Class Distribution -------------------- 100% | Mutant Dominant Class ---------------- Mutant | -10/Materials Mutant | -10/Mines Resources | -11 -10 -10 ----------- Run | Yrd Mat Min Matter Collected 587 | 269 277 41 Remotely . | . . . Salvage Created 602 | 109 433 60 Parts 45 | 6 39 . Haulers Intercepted . | . . . Recyclers Shooed 1 | 1 . . Parts Field Recycled . | . . . Retrieved Matter . | . . . Parts Self-Destructed . | . . . Prevented . | . . . Kills | -11 -10 -10 ------- Run | Yrd Mat Min Combat Hostiles Destroyed 33 | . 16 17 Guns 18 | . 16 2 AOE 15 | . . 15 Classes Destroyed 7 | 2 4 1 Tunneler 1 | 1 . . Recycler 1 | 1 . . Operator 2 | . 2 . Watcher 1 | . 1 . Swarmer 9 | . 9 . Grunt 7 | . 7 . Assembled 17 | . . 17 Best Kill Streak 17 | 2 3 17 Combat Bots Only 17 | . 3 17 Max Kills in Single Turn 7 | 1 1 7 Gunslinging . | . . . Exploded 7 | . . 7 Melee . | . . . Uniques/NPCs Destroyed . | . . . Combat | -11 -10 -10 -------- Run | Yrd Mat Min Hostile Shots Fired 150 | . 99 51 Missed 43 | . 29 14 Hits 107 | . 70 37 Melee 5 | . . 5 Projectile 102 | . 70 32 AOE 7 | . . 7 Damage Taken 1521 | . 692 829 Core 260 | . 79 181 Absorbed by Shields . | . . . Regen/Repaired (Parts) 279 | . 279 . Core Remaining (%) 100 | 100 . . Volleys Fired 107 | 9 84 14 Largest 2 | 1 2 2 Hottest 50 | 20 40 50 Shots Fired 196 | 9 162 25 Gun 189 | 9 162 18 Cannon . | . . . Launcher 7 | . . 7 Special . | . . . Kinetic 189 | 9 162 18 Thermal . | . . . Explosive 7 | . . 7 Electromagnetic . | . . . Robot Hit Streak 9 | 6 9 5 Robot Miss Streak 6 | 1 6 2 Penetration Max . | . . . Secondary Targets 1 | . . 1 Max Gunslinging Chain 1 | . . 1 Shots Hit Robots 110 | 7 87 16 Core Hits 81 | 4 40 37 Critical Kills 1 | . 1 . Critical Parts Destroyed . | . . . Critical Strikes 1 | . 1 . Destroy 1 | . 1 . Melee Attacks 2 | . 2 . Impact 2 | . 2 . Slashing . | . . . Piercing . | . . . Sneak Attacks . | . . . Combat Hostiles . | . . . Follow-up Attacks . | . . . Damage Inflicted 1883 | 61 733 1089 Guns 865 | 61 733 71 Cannons . | . . . Explosions 1018 | . . 1018 Melee . | . . . Ramming . | . . . Kinetic 865 | 61 733 71 Thermal . | . . . Explosive 1018 | . . 1018 Electromagnetic . | . . . Impact . | . . . Slashing . | . . . Piercing . | . . . Highest Corruption 2 | . 2 2 Average Corruption 2 | . 2 2 Corruption Purged . | . . . Corruption Blocked . | . . . Effects 24 | . 20 4 Message Errors 4 | . 4 . Matter Fused 7 | . 5 2 Heat Flow Errors 7 | . 7 . Energy Discharges 2 | . 2 . Data Loss (minor) 2 | . 2 . Data Loss (major) 1 | . . 1 Alerts 1 | . . 1 Overload Shots . | . . . Overflow Damage 14 | . . 14 Projectiles . | . . . Explosions 14 | . . 14 Melee . | . . . Knockbacks . | . . . Impact . | . . . Kinetic . | . . . Secondary . | . . . Self-Inflicted Damage 106 | . . 106 Shots 4 | . . 4 Rammed . | . . . Targets Rammed . | . . . Kicked . | . . . Crushed . | . . . Highest Temperature 245 | . 245 26 Average Temperature 50 | . 53 13 Received Heat Transfer 182 | . 162 20 Siege Activations . | . . . Martial Activations . | . . . Shielding Activations . | . . . Robots Disrupted . | . . . Combat Hostiles . | . . . Robots Corrupted . | . . . Combat Hostiles . | . . . Parts Fried . | . . . Impact Corruptions . | . . . Robots Melted . | . . . Combat Hostiles . | . . . Parts Melted . | . . . Heat Transferred . | . . . Parts Sabotaged . | . . . Parts Stolen . | . . . Parts Stripped . | . . . Power Chain Reactions . | . . . Alert | -11 -10 -10 ------- Run | Yrd Mat Min Maximum Alert Level . | . . . Low Security (%) 100 | 100 100 100 Level 1 . | . . . Level 2 . | . . . Level 3 . | . . . Level 4 . | . . . Level 5 . | . . . High Security . | . . . Max Security . | . . . Peak Influence 100 | 10 100 20 Initial 13 | . . 13 Average 22 | . 27 2 Influence Increases 463 | 10 413 40 Destroy 0b10 Robot/C 320 | . 320 . Destroy 0b10 Robot/NC 25 | 10 15 . Destroy Leader 62 | . 62 . Successful Hack 14 | . 14 . Destroy Structure 42 | . 2 40 Influence Decreases 463 | 10 379 74 Entered New Map 21 | . . 21 Time Decay 422 | 10 379 33 Lost Part 20 | . . 20 Squads Dispatched 4 | . 4 . Investigation 3 | . 3 . Extermination . | . . . Reinforcement 1 | . 1 . Assault . | . . . Garrison . | . . . Intercept . | . . . Searches Triggered . | . . . Construction Impeded . | . . . Haulers Reinforced . | . . . Active Scanning Responses . | . . . Cargo Convoy Interrupts . | . . . Stealth | -11 -10 -10 --------- Run | Yrd Mat Min Distress Signals 4 | . 4 . Communications Jammed . | . . . Distress Signals . | . . . Times Spotted 64 | . 42 22 Peak Tracking Total 17 | . 5 17 Tactical Retreats . | . . . Traps | -11 -10 -10 ------- Run | Yrd Mat Min Traps Triggered 3 | . 3 . Indirectly . | . . . Trap Hack Attempts . | . . . Triggered . | . . . Disarmed . | . . . Reprogrammed . | . . . Reused . | . . . Traps Extracted . | . . . Installed . | . . . Triggered . | . . . Machines | -11 -10 -10 ---------- Run | Yrd Mat Min Machines Disabled . | . . . Max in Single Turn . | . . . Machines Repaired . | . . . Machines Dismantled . | . . . Machines Sabotaged . | . . . Overloaded Fab Kills . | . . . Hacking | -11 -10 -10 --------- Run | Yrd Mat Min Machines Accessed 8 | . 8 . Terminals 6 | . 6 . Fabricators . | . . . Repair Stations 1 | . 1 . Recycling Units 1 | . 1 . Scanalyzers . | . . . Garrison Access . | . . . Total Hacks 30 | . 30 . Successful 15 | . 15 . Failed 15 | . 15 . Catastrophic 1 | . 1 . Database Lockouts . | . . . Manual 21 | . 21 . Terminals 21 | . 21 . Fabricators . | . . . Repair Stations 7 | . 7 . Recycling Units 2 | . 2 . Scanalyzers . | . . . Garrison Access . | . . . Terminal Hacks 6 | . 6 . Part Schematic 1 | . 1 . Robot Analysis 3 | . 3 . Terminal Index 1 | . 1 . Hauler Manifests 1 | . 1 . Fabricator Hacks . | . . . Repair Station Hacks 6 | . 6 . Scan Component 3 | . 3 . Repair 3 | . 3 . Recycling Unit Hacks 1 | . 1 . Retrieve Components 1 | . 1 . Scanalyzer . | . . . Garrison Access Hacks . | . . . Unauthorized Hacks 2 | . 2 . Terminals 2 | . 2 . Operators 2 | . 2 . Fabricators . | . . . Repair Stations . | . . . Recycling Units . | . . . Scanalyzers . | . . . Garrison Access . | . . . Data Cores Recovered . | . . . Used . | . . . Hacking Detections 7 | . 7 . Full Trace Events 5 | . 5 . Feedback Events . | . . . Feedback Blocked . | . . . Robot Schematics Acquired . | . . . Robots Built . | . . . Authchips . | . . . Time . | . . . Total Robot Build Rating . | . . . Part Schematics Acquired 1 | . 1 . Parts Built . | . . . Authchips . | . . . Time . | . . . Total Part Build Rating . | . . . Parts Repaired 3 | . 3 . Time 78 | . 78 . Parts Recycled . | . . . Recycled Matter . | . . . Retrieved Matter . | . . . Retrieved Components 4 | . 4 . Parts Scanalyzed . | . . . Part Schematics Acquired . | . . . Parts Damaged . | . . . Bothacking | -11 -10 -10 ------------ Run | Yrd Mat Min Used RIF Installer . | . . . Robots Hacked . | . . . Non-combat . | . . . Combat . | . . . Robot Hacks Applied . | . . . Relay Couplers Released . | . . . Fabnet Peak Effective % . | . . . Robots Rewired . | . . . Allies Hacked . | . . . Hacks Repelled . | . . . Allies | -11 -10 -10 -------- Run | Yrd Mat Min Total Allies . | . . . Largest Group . | . . . Highest-Rated Group . | . . . Highest-Rated Ally . | . . . Total Orders . | . . . Ally Attacks . | . . . Total Damage . | . . . Kills . | . . . Allies Corrupted . | . . . Allies Melted . | . . . Intel | -11 -10 -10 ------- Run | Yrd Mat Min Active Infowar (turns) 343 | 37 282 24 Terrain 24 | . . 24 Seismic 319 | 37 282 . Robot Analysis Total 3 | . 3 . Derelict Logs Recovered 1 | . . 1 Drone Launches . | . . . Drone Recoveries . | . . . Exploration | -11 -10 -10 ------------- Run | Yrd Mat Min Turns Passed 1935 | 117 1562 256 Spaces Moved 882 | 58 680 144 Core 4 | 4 . . Treads 853 | 54 680 119 Legs . | . . . Wheels 25 | . . 25 Hover . | . . . Flight . | . . . Fastest Speed 50 | 50 160 100 Average Speed 157 | 152 160 149 Slowest Speed 160 | 160 160 160 Overloaded Moves . | . . . Propulsion Burnouts . | . . . Robots Hopped . | . . . Potential Cave-ins . | . . . Cave-ins Triggered . | . . . Exploration Rate (%) 44 | 5 84 43 Regions Visited 2 Branch Regions 1 Pre-discovered Areas . | . . . Known Exits Taken . | . . . Unknown Exits Taken 2 | 1 1 . Scrap Searched 1 | . . 1 Spaces Dug 2 | . 2 . Terrain Destroyed 60 | . 2 58 Melee 2 | . 2 . Projectile . | . . . AOE 58 | . . 58 Terrain Rammed . | . . . Walls Destroyed . | . . . Machines Disabled . | . . . Actions | -11 -10 -10 --------- Run | Yrd Mat Min Total 1256 | 77 1017 162 Wait 235 | 1 234 . Move 880 | 57 679 144 Hop . | . . . Pick Up 10 | 4 6 . Fast Attach 11 | 6 4 1 Attach 4 | . 2 2 Detach . | . . . Swap 6 | . 5 1 Drop 1 | . 1 . Fire 107 | 9 84 14 Melee 2 | . 2 . Ram . | . . . Kick . | . . . Crush . | . . . Escape Stasis . | . . . Rewire . | . . . Trap . | . . . Miscellaneous . | . . . Route ------- -11/Scrapyard -10/Materials (discovered 4 exits: [*Mat x2] / [*Min x2]) -10/Mines History --------- Turn | Location | Event 36 | -11/Scrapyard | Discovered new exit (range 15) 118 | -11/Scrapyard | Entered Materials 306 | -10/Materials | Build established: Mutant 525 | -10/Materials | Discovered new exit (range 16) 791 | -10/Materials | Discovered new exit (range 16) 955 | -10/Materials | Discovered new exit (range 13) 1540 | -10/Materials | Discovered new exit (range 15) 1596 | -10/Materials | Repaired Lgt. Treads 1624 | -10/Materials | Repaired Lgt. Treads 1651 | -10/Materials | Repaired Lgt. Armor Plating 1680 | -10/Materials | Entered Mines 1685 | -10/Mines | Learned Materials emergency access door positions 1840 | -10/Mines | Assembled infested the area 1878 | -10/Mines | Core integrity fell below 50% 1915 | -10/Mines | Core integrity fell below 20% 1927 | -10/Mines | Destroyed 17 combat bots 1936 | -10/Mines | Destroyed by D-53 Grenadier with Mini Grenade Launcher Last Messages --------------- 01898_ Switching to secondary target: as-93467. 01899_ U-05 Engineer builds a Wall. 01902_ The unstable cave ceiling collapses. 01903_ U-05 Engineer lays Concrete. 01904_ U-05 Engineer builds a Wall. 01906_ as-93467 destroyed. 01908_ C-30 ARC bursts open, deploying its payload. 01908_ D-53 Grenadier unfolds itself. 01908_ Lgt. Assault Rifle destroyed. 01908_ as-49657 destroyed. 01908_ U-05 Engineer builds a Wall. 01909_ The unstable cave ceiling collapses. 01909_ Lgt. Treads destroyed. 01911_ Lgt. Assault Rifle destroyed. 01911_ U-05 Engineer destroyed. 01912_ Acquired Terrain Scanner. 01913_ Lgt. Treads destroyed. 01917_ The unstable cave ceiling collapses. 01936_ Com. Wheel destroyed. Map ----- +----------------------------------------------------+ | ???????????????????? ## ## #????? | | ???????????????????????? ?????# ######????? | | ??????????????????????????????# #?????????? | | ??????????????????????????????# #?????????? | | ??????????????????????????????## #?????????? | | ???????????????????????????????## ##????????? | | ????????????????????????????????# #????????? | | ???????????????????????????????## #????????? | | ??????????????????????????????## " ##????????? | | ???????????????????????????#### "%##?????????? | | ???????????????????????????# ##?????????? | | ???????????????????????????# ### #?????????? | | ???????????????????????????# ??# #?????????? | | ???????????????????????????# ?## #?????????? | | ???????????????????????????# ?# ##????????? | | ???????????????????????????# ## ##???????? | | ???????????????????????????# # #???????? | | ???????????????????????????# #???????? | | ???????????????????????????# ## ######??? | | ????????????????# ######## # # #??? | | ????????????????? # #??? | | ??????????????????????# #### # # #?? | | ?????????????????#???## ???# %% #?? | | ????????????????????## #### # #?? | | ??????????????????### # " #?? | | ?????????????????## @ d # % % #?? | | ?????????????????# ###### ####### ##?? | | ?????????????????# ## ##????? ##?? | | ????????????????## ##?#??? #?? | | ????????????????# #????? #?? | | ????????????????# ##?????? ##?? | | ????????????????## #???????##??? | | ?????????????????### #### ##???????????? | | ???????????????????####???#### #????????????? | | ??????????????????????????????# #????????????? | | ??????????????????????????????####????????????? | | ??????????????????????????????????????????????? | | | | | | | | | | | | | | | | | | | | | | | | | | | +----------------------------------------------------+ Best States ------------- Heat Dissipation 25 Energy Generation 10 Energy Capacity 250 Matter Stores 300 Matter Capacity 300 Sight Range 16 Terrain Scan Range 14 Terrain Scan Density 10 Armor Coverage 150 Evasion (%) 40 Recoil Reduction 2 Item Schematics ----------------- Med. Storage Unit | -10/Materials | Hacked Robot Schematics ------------------ None Fabricated ------------ Nothing Repaired ---------- Lgt. Treads | 7% | -10/Materials Lgt. Treads | 18% | -10/Materials Lgt. Armor Plating | 60% | -10/Materials Alien Tech Used ----------------- None Achievements -------------- Armchair Analyst Exterminator Challenges ------------ None Game ------ Seed DisruptorDroneSuperbattery Manual? 0 Play Time 00:16:29 Cumulative 13.0 hours Start 2025.07.01 @ 00:35:50 End 2025.07.01 @ 00:51:12 Sessions 3 Manual Loads 0 Difficulty Rogue Special Mode None Game No. 14 Rogue 14 Adventurer 0 Explorer 0 Win Type - Total 1 Types 1/0/0/0/0/0/0/0/0/0 Lore% 13 Gallery% 20 Achievement% 23 Wizard Run 0 Options --------- Layout 2 ASCII 0 Keyboard 0 Movement Mouse Keybinds 0 Fullscreen 1 Font 24/Smallcaps Map View 50x44 Zoom Use 0% Tactical HUD 1 Map Filters NONE Filters NONE Steam 1 RUN: d5758850-a894-483c-af12-1e4d2a5e0c19